fUSD/lending_fUSD_20260307
["ID","MTS","AMOUNT","RATE_DAILY","PERIOD"]
[407928232,1772922632810,-500.0,0.00015784,2]
[407928233,1772922632819,-500.0,0.00015784,2]
[407928234,1772922632829,-500.0,0.00015784,2]
[407928235,1772922632838,-500.0,0.00015784,2]
[407928236,1772922632849,-500.0,0.00015784,2]
[407928237,1772922632858,-500.0,0.00015784,2]
[407928238,1772922632868,-500.0,0.00015784,2]
[407928239,1772922632877,-500.0,0.00015784,2]
[407928240,1772922632887,-500.0,0.00015784,2]
[407928241,1772922632897,-500.0,0.00015784,2]
[407928242,1772922632906,-500.0,0.00015784,2]
[407928243,1772922632917,-500.0,0.00015784,2]
[407928244,1772922632927,-500.0,0.00015784,2]
[407928245,1772922632937,-500.0,0.00015784,2]
[407928246,1772922632949,-500.0,0.00015784,2]
[407928247,1772922632959,-500.0,0.00015784,2]
[407928248,1772922632968,-500.0,0.00015784,2]
[407928249,1772922632979,-500.0,0.00015784,2]
[407928250,1772922632988,-500.0,0.00015784,2]
[407928251,1772922632998,-500.0,0.00015784,2]
[407928252,1772922633007,-279.9073084,0.00015784,2]
[407928253,1772922633016,-500.0,0.00015784,2]
[407928254,1772922633025,-500.0,0.00015784,2]
[407928255,1772922633034,-500.0,0.00015784,2]
[407928256,1772922633043,-500.0,0.00015784,2]
[407928257,1772922633053,-500.0,0.00015784,2]
[407928258,1772922633063,-210.6126522,0.00015784,2]
[407928259,1772922633072,-500.0,0.00015784,2]
[407928260,1772922633083,-500.0,0.00015784,2]
[407928261,1772922633092,-500.0,0.00015784,2]
[407928262,1772922633102,-500.0,0.00015784,2]
[407928263,1772922633111,-500.0,0.00015784,2]
[407928264,1772922633121,-500.0,0.00015784,2]
[407928265,1772922633130,-500.0,0.00015784,2]
[407928266,1772922633141,-500.0,0.00015784,2]
[407928267,1772922633152,-500.0,0.00015784,2]
[407928268,1772922633164,-500.0,0.00015784,2]
[407928269,1772922633179,-500.0,0.00015784,2]
[407928270,1772922633189,-500.0,0.00015784,2]
[407928271,1772922633199,-500.0,0.00015784,2]
[407928272,1772922633210,-500.0,0.00015784,2]
[407928273,1772922633219,-500.0,0.00015784,2]
[407928274,1772922633229,-500.0,0.00015784,2]
[407928275,1772922633239,-500.0,0.00015784,2]
[407928276,1772922633252,-500.0,0.00015784,2]
[407928277,1772922633264,-500.0,0.00015784,2]
[407928278,1772922633274,-500.0,0.00015784,2]
[407928279,1772922633284,-500.0,0.00015784,2]
[407928280,1772922633294,-500.0,0.00015784,2]
[407928281,1772922633303,-500.0,0.00015784,2]
[407928282,1772922633312,-500.0,0.00015784,2]
[407928283,1772922633322,-500.0,0.00015784,2]
[407928284,1772922633333,-500.0,0.00015784,2]
[407928285,1772922633342,-500.0,0.00015784,2]
[407928286,1772922633352,-500.0,0.00015784,2]
[407928287,1772922633361,-460.0881081,0.00015784,2]
[407928288,1772922633373,-281.32354233,0.00015784,2]
[407928289,1772922633701,-500.0,0.00015784,2]
[407928290,1772922633711,-550.57289712,0.00015784,2]
[407928291,1772922633720,-180.60823722,0.00015784,2]
[407928292,1772922633729,-16250.31385879,0.00015785,2]
[407928293,1772922633742,-43261.18991399,0.00015785,2]
[407928294,1772922633753,-100133.98623749,0.00015785,2]
[407928301,1772922637502,-424.06072804,0.00015784,2]
[407928304,1772922637616,-75.93927196,0.00015784,2]
[407928305,1772922637625,-264.47276717,0.00015784,2]
[407928306,1772922637634,-629.27104303,0.00015784,2]
[407928307,1772922637643,-500.0,0.00015784,2]
[407928308,1772922637653,-500.0,0.00015784,2]
[407928309,1772922637662,-500.0,0.00015784,2]
[407928310,1772922637671,-500.0,0.00015784,2]
[407928311,1772922637680,-500.0,0.00015784,2]
[407928312,1772922637689,-500.0,0.00015784,2]
[407928313,1772922637698,-500.0,0.00015784,2]
[407928314,1772922637707,-500.0,0.00015784,2]
[407928315,1772922637716,-500.0,0.00015784,2]
[407928316,1772922637725,-500.0,0.00015784,2]
[407928317,1772922637734,-500.0,0.00015784,2]
[407928318,1772922637743,-500.0,0.00015784,2]
[407928319,1772922637753,-500.0,0.00015784,2]
[407928320,1772922637763,-500.0,0.00015784,2]
[407928321,1772922637772,-500.0,0.00015784,2]
[407928322,1772922637781,-500.0,0.00015784,2]
[407928323,1772922637790,-500.0,0.00015784,2]
[407928324,1772922637799,-500.0,0.00015784,2]
[407928325,1772922637808,-500.0,0.00015784,2]
[407928326,1772922637817,-500.0,0.00015784,2]
[407928327,1772922637826,-500.0,0.00015784,2]
[407928328,1772922637835,-500.0,0.00015784,2]
[407928329,1772922637844,-500.0,0.00015784,2]
[407928331,1772922637854,-500.0,0.00015784,2]
[407928333,1772922637863,-500.0,0.00015784,2]
[407928335,1772922637872,-500.0,0.00015784,2]
[407928337,1772922637881,-2340354.50998973,0.00015785,2]
[407928339,1772922637890,-1300.0,0.000158,5]
[407928341,1772922637899,-411.0,0.00015808,2]
[407928343,1772922637907,-500.0,0.00015881,2]
[407928344,1772922637916,-500.0,0.00015881,2]
[407928345,1772922637926,-500.0,0.00015881,2]
[407928346,1772922637934,-2000.0,0.0001589,2]
[407928347,1772922637943,-1700.0,0.000159,5]
[407928348,1772922637953,-4236.4758086,0.0001596,2]
[407928349,1772922637962,-1327.12,0.00015969,2]
[407928350,1772922637971,-500.0,0.00015982,2]
[407928351,1772922637980,-500.0,0.00015982,2]
[407928352,1772922637989,-500.0,0.00015982,2]
[407928353,1772922637998,-500.0,0.00015982,2]
[407928354,1772922638007,-500.0,0.00015982,2]
[407928355,1772922638016,-500.0,0.00015982,2]
[407928356,1772922638025,-500.0,0.00015982,2]
[407928357,1772922638034,-500.0,0.00015982,2]
[407928358,1772922638042,-500.0,0.00015982,2]
[407928359,1772922638052,-500.0,0.00015982,2]
[407928360,1772922638061,-553.67077404,0.00015982,2]
[407928361,1772922638070,-3708.82164898,0.00016039,2]
[407928362,1772922638079,-241.38212233,0.00016039,2]
[407928363,1772922638088,-671.8,0.00016049,2]
[407928364,1772922638097,-150.0,0.00016066,2]
[407928365,1772922638106,-50127.47691889,0.00016094,2]
[407928366,1772922638115,-7310.8256,0.00016139,2]
[407928367,1772922638124,-1000.0,0.00016139,2]
[407928368,1772922638133,-656.43829161,0.00016224,2]
[407928369,1772922638142,-5524.20795773,0.000163,2]
[407928370,1772922638151,-671.8,0.00016323,2]
[407928371,1772922638160,-200.0,0.00016324,2]
[407928372,1772922638169,-500.0,0.00016398,2]
[407928373,1772922638178,-200.0,0.00016456,2]
[407928374,1772922638187,-200.0,0.00016456,2]
[407928375,1772922638196,-200.0,0.00016456,2]
[407928376,1772922638205,-250.44812906,0.00016456,2]
[407928377,1772922638214,-587.91798568,0.00016468,2]
[407928378,1772922638224,-671.8,0.00016597,2]
[407928379,1772922638233,-476.28715747,0.0001671,2]
[407928380,1772922638243,-166.51,0.00016712,2]
[407928381,1772922638253,-1327.12,0.00016729,2]
[407928382,1772922638265,-671.8,0.00016871,2]
[407928383,1772922638275,-200.0,0.00016872,2]
[407928384,1772922638284,-510.0,0.00016892,2]
[407928385,1772922638293,-5524.20795773,0.000169,2]
[407928386,1772922638304,-238.12,0.00016925,2]
[407928387,1772922638313,-503.0,0.00017,2]
[407928388,1772922638322,-150.0,0.00017011,2]
[407928389,1772922638333,-253.424256,0.00017013,2]
[407928390,1772922638343,-671.8,0.00017145,2]
[407928391,1772922638352,-587.91798568,0.00017154,2]
[407928392,1772922638361,-420.0,0.00017169,2]
[407928393,1772922638370,-1680.0,0.00017239,2]
[407928394,1772922638379,-500.0,0.00017249,2]
[407928395,1772922638388,-500.0,0.00017249,2]
[407928396,1772922638397,-500.0,0.00017249,2]
[407928397,1772922638406,-671.8,0.00017419,2]
[407928398,1772922638416,-200.0,0.0001742,2]
[407928399,1772922638425,-1327.12,0.00017489,2]
[407928400,1772922638434,-5524.20795773,0.000175,2]
[407928401,1772922638443,-671.85882377,0.00017693,2]
[407928402,1772922638452,-621.22762578,0.000178,2]
[407928403,1772922638461,-1339.7119937,0.000178,2]
[407928404,1772922638471,-800.0,0.00017808,2]
[407928405,1772922638479,-587.91798568,0.00017841,2]
[407928406,1772922638488,-342.82895016,0.00017968,2]
[407928407,1772922638497,-3708.82164898,0.0001797,2]
[407928408,1772922638506,-242.054553,0.00017994,2]
[407928409,1772922638515,-199.8,0.00018,4]
[407928410,1772922638525,-656.4382916,0.00018062,2]
[407928411,1772922638535,-1000.0,0.00018082,7]
[407928412,1772922638545,-2200.0,0.00018082,7]
[407928413,1772922638555,-2200.0,0.00018082,7]
[407928414,1772922638566,-866.0,0.0001809,2]
[407928415,1772922638577,-636.0,0.0001811,2]
[407928416,1772922638587,-168.0,0.0001822,2]
[407928417,1772922638597,-1327.12,0.0001825,2]
[407928418,1772922638606,-151.0,0.00018353,2]
[407928419,1772922638617,-70111.63,0.00018356,2]
[407928420,1772922638627,-587.91798568,0.00018527,2]
[407928421,1772922638638,-168.0,0.0001854,2]
[407928422,1772922638648,-480.99,0.00018547,2]
[407928423,1772922638658,-480.98,0.00018569,2]
[407928424,1772922638668,-480.98,0.00018569,2]
[407928425,1772922638679,-480.98,0.00018571,2]
[407928426,1772922638690,-480.98,0.00018573,2]
[407928427,1772922638700,-160.0,0.0001872,2]
[407928428,1772922638710,-2802.0,0.0001872,2]
[407928429,1772922638720,-151.0,0.00018725,2]
[407928430,1772922638729,-1428.38747117,0.00018725,2]
[407928431,1772922638738,-209.40437684,0.00018725,2]
[407928432,1772922638747,-721.12765535,0.00018725,2]
[407928433,1772922638756,-250.0,0.00018725,2]
[407928434,1772922638765,-500.0,0.00018725,2]
[407928435,1772922638775,-2500.0,0.00018725,2]
[407928436,1772922638784,-250.0,0.00018725,2]
[407928437,1772922638793,-2500.0,0.00018725,2]
[407928438,1772922638802,-250.0,0.00018725,2]
[407928439,1772922638812,-2500.0,0.00018725,2]
[407928440,1772922639123,-250.0,0.00018725,2]
[407928441,1772922639136,-2500.0,0.00018725,2]
[407928442,1772922639145,-250.0,0.00018725,2]
[407928443,1772922639154,-1000.0,0.00018725,2]
[407928444,1772922639163,-250.0,0.00018725,2]
[407928445,1772922639172,-250.0,0.00018725,2]
[407928446,1772922639181,-250.0,0.00018725,2]
[407928447,1772922639191,-250.0,0.00018725,2]
[407928448,1772922639200,-250.0,0.00018725,2]
[407928449,1772922639211,-250.0,0.00018725,2]
[407928450,1772922639220,-250.0,0.00018725,2]
[407928451,1772922639229,-3000.0,0.00018725,2]
[407928452,1772922639238,-250.0,0.00018725,2]
[407928453,1772922639247,-3000.0,0.00018725,2]
[407928454,1772922639260,-250.0,0.00018725,2]
[407928455,1772922639269,-1000.0,0.00018725,2]
[407928456,1772922639278,-578.20924308,0.00018725,2]
[407928457,1772922639287,-1000.0,0.00018725,2]
[407928458,1772922639297,-2970.91497975,0.00018725,2]
[407928459,1772922639306,-931.42295046,0.00018725,2]
[407928460,1772922639315,-250.0,0.00018725,2]
[407928461,1772922639326,-250.0,0.00018725,2]
[407928462,1772922639335,-250.0,0.00018725,2]
[407928463,1772922639345,-250.0,0.00018725,2]
[407928464,1772922639354,-250.0,0.00018725,2]
[407928465,1772922639363,-250.0,0.00018725,2]
[407928466,1772922639374,-250.0,0.00018725,2]
[407928467,1772922639383,-250.0,0.00018725,2]
[407928468,1772922639395,-174.61919141,0.00018725,2]
[407928469,1772922639405,-245.69751528,0.00018725,2]
[407928470,1772922639414,-743.50770149,0.00018725,2]
[407928471,1772922639423,-250.0,0.00018725,2]
[407928472,1772922639432,-250.0,0.00018725,2]
[407928473,1772922639442,-693.3919763,0.00018725,2]
[407928474,1772922639450,-250.0,0.00018725,2]
[407928475,1772922639460,-250.0,0.00018725,2]
[407928476,1772922639469,-250.0,0.00018725,2]
[407928477,1772922639478,-250.0,0.00018725,2]
[407928478,1772922639488,-250.0,0.00018725,2]
[407928479,1772922639499,-1000.0,0.00018725,2]
[407928480,1772922639511,-250.0,0.00018725,2]
[407928481,1772922639520,-750.0,0.00018725,2]
[407928482,1772922639530,-151.0,0.00018725,2]
[407928483,1772922639541,-500.0,0.00018725,2]
[407928484,1772922639551,-262.90206542,0.00018725,2]
[407928485,1772922639561,-500.0,0.00018725,2]
[407928486,1772922639570,-500.0,0.00018725,2]
[407928487,1772922639579,-500.0,0.00018725,2]
[407928488,1772922639589,-500.0,0.00018725,2]
[407928490,1772922639598,-500.0,0.00018725,2]
[407928492,1772922639609,-209.40437686,0.00018725,2]
[407928493,1772922639620,-500.0,0.00018725,2]
[407928494,1772922639629,-500.0,0.00018725,2]
[407928495,1772922639640,-200.0,0.00018725,2]
[407928496,1772922639649,-500.0,0.00018725,2]
[407928497,1772922639659,-500.0,0.00018725,2]
[407928498,1772922639668,-693.3919763,0.00018725,2]
[407928499,1772922639677,-500.0,0.00018725,2]
[407928500,1772922639687,-480.99,0.00018727,2]
[407928501,1772922639697,-587.0,0.00018778,2]
[407928502,1772922639707,-719.04747942,0.0001878,2]
[407928503,1772922639716,-151.0,0.0001878,2]
[407928504,1772922639726,-2000.0,0.000188,2]
[407928505,1772922639735,-745.65223616,0.00018835,2]
[407928506,1772922639745,-151.0,0.00018835,2]
[407928507,1772922639754,-773.2413689,0.0001889,2]
[407928508,1772922639764,-151.0,0.0001889,2]
[407928509,1772922639773,-376.88153769,0.00018904,2]
[407928510,1772922639783,-480.99,0.00018909,2]
[407928511,1772922639792,-500.0,0.00018932,2]
[407928512,1772922639801,-801.85129955,0.00018945,2]
[407928513,1772922639810,-280.65940737,0.00018945,2]
[407928514,1772922639820,-480.0,0.00018949,2]
[407928515,1772922639829,-548.75345228,0.00018973,2]
[407928516,1772922639839,-831.51979763,0.00019,2]
[407928517,1772922639848,-7363.41205091,0.00019,2]
[407928518,1772922639857,-5000.0,0.00019,2]
[407928519,1772922639866,-1281.37665699,0.00019014,2]
[407928520,1772922639875,-168.0,0.00019025,2]
[407928521,1772922639884,-862.28603014,0.00019055,2]
[407928522,1772922639893,-500.0,0.00019056,2]
[407928523,1772922639902,-1281.37665699,0.00019068,2]
[407928524,1772922639911,-480.99,0.00019085,2]
[407928525,1772922639920,-2012.0,0.000191,2]
[407928526,1772922639929,-379.1,0.00019105,2]
[407928527,1772922639938,-894.19061326,0.0001911,2]
[407928528,1772922639947,-1281.37665699,0.00019151,2]
[407928529,1772922639956,-927.27566595,0.00019165,2]
[407928530,1772922639967,-503.0,0.00019172,4]
[407928531,1772922639976,-1000.0,0.00019178,7]
[407928532,1772922639986,-2200.0,0.00019178,7]
[407928533,1772922639997,-2200.0,0.00019178,7]
[407928534,1772922640007,-379.1,0.00019186,2]
[407928535,1772922640017,-587.91798568,0.00019214,2]
[407928536,1772922640028,-961.58486559,0.0001922,2]
[407928537,1772922640039,-1281.37665699,0.00019233,2]
[407928538,1772922640050,-350.0,0.00019247,2]
[407928539,1772922640060,-160.0,0.0001925,2]
[407928540,1772922640071,-172.78723296,0.0001925,2]
[407928541,1772922640081,-480.98,0.00019263,2]
[407928542,1772922640091,-480.98,0.00019263,2]
[407928543,1772922640101,-379.1,0.00019268,2]
[407928544,1772922640112,-481.00943592,0.00019271,2]
[407928545,1772922640123,-225.18697533,0.00019273,2]
[407928546,1772922640134,-500.0,0.00019273,2]
[407928547,1772922640144,-181.08010149,0.00019273,2]
[407928548,1772922640154,-743.50770149,0.00019273,2]
[407928549,1772922640166,-272.62944185,0.00019273,2]
[407928550,1772922640176,-200.0,0.00019273,2]
[407928551,1772922640188,-745.65223616,0.00019273,2]
[407928552,1772922640198,-997.16350561,0.00019275,2]
[407928553,1772922640209,-1281.37665699,0.00019315,2]
[407928554,1772922640219,-379.1,0.00019349,2]
[407928555,1772922640228,-350.0,0.00019353,2]
[407928557,1772922640239,-1473.0,0.00019368,2]
[407928559,1772922640250,-1281.37665699,0.0001937,2]
[407928561,1772922640262,-2200.0,0.000194,7]
[407928563,1772922640271,-379.1,0.0001943,2]
[407928566,1772922640281,-168.0,0.00019441,2]
[407928567,1772922640293,-500.0,0.00019442,2]
[407928569,1772922640304,-244.4381671,0.00019442,2]
[407928571,1772922640314,-1281.37665699,0.00019452,2]
[407928574,1772922640325,-418.0,0.00019475,2]
[407928575,1772922640336,-400.0,0.000195,7]
[407928577,1772922640345,-379.1,0.00019512,2]
[407928579,1772922640355,-1281.37665699,0.00019534,2]
[407928581,1772922640364,-161.369702,0.00019563,2]
[407928583,1772922640373,-379.1,0.00019593,2]
[407928585,1772922640382,-1145.32065572,0.000196,2]
[407928587,1772922640391,-1966.37408088,0.000196,2]
[407928589,1772922640400,-2376.35408644,0.000196,2]
[407928591,1772922640409,-10000.0,0.000196,2]
[407928593,1772922640419,-4592.8277,0.000196,2]
[407928595,1772922640428,-400.0,0.000196,7]
[407928597,1772922640437,-1281.37665699,0.00019616,2]
[407928598,1772922640447,-238.12,0.0001964,2]
[407928599,1772922640457,-379.1,0.00019675,2]
[407928600,1772922640467,-418.0,0.00019675,2]
[407928601,1772922640477,-161.0,0.0001968,2]
[407928602,1772922640487,-2804.0,0.0001968,2]
[407928603,1772922640497,-418.0,0.00019687,2]
[407928604,1772922640507,-1281.37665699,0.00019699,2]
[407928605,1772922640517,-150.0,0.000197,2]
[407928606,1772922640527,-150.0,0.000197,2]
[407928607,1772922640537,-150.0,0.000197,2]
[407928608,1772922640547,-150.0,0.000197,2]
[407928609,1772922640555,-150.0,0.000197,2]
[407928610,1772922640564,-150.0,0.000197,2]
[407928611,1772922640573,-150.0,0.000197,2]
[407928612,1772922640582,-400.0,0.000197,7]
[407928613,1772922640592,-150.0,0.000197,2]
[407928614,1772922640601,-150.0,0.000197,2]
[407928615,1772922640610,-250.0,0.000197,2]
[407928616,1772922640619,-150.0,0.000197,2]
[407928617,1772922640629,-250.0,0.000197,2]
[407928618,1772922640638,-250.0,0.000197,2]
[407928619,1772922640648,-418.0,0.00019736,2]
[407928620,1772922640657,-3354.0,0.00019741,2]
[407928621,1772922640667,-1281.37665699,0.00019753,2]
[407928622,1772922640676,-150.0,0.00019755,2]
[407928623,1772922640685,-150.0,0.00019755,2]
[407928624,1772922640694,-150.0,0.00019755,2]
[407928625,1772922640703,-200.0,0.00019755,2]
[407928626,1772922640712,-150.0,0.00019755,2]
[407928627,1772922640722,-259.93316597,0.00019755,2]
[407928628,1772922640731,-150.0,0.00019755,2]
[407928629,1772922640740,-379.1,0.00019756,2]
[407928630,1772922640749,-400.0,0.000198,7]
[407928631,1772922640759,-150.0,0.000198,30]
[407928632,1772922640768,-200.0,0.0001981,2]
[407928633,1772922640777,-200.0,0.0001981,2]
[407928634,1772922640786,-200.0,0.0001981,2]
[407928635,1772922640795,-200.0,0.0001981,2]
[407928636,1772922640805,-200.0,0.0001981,2]
[407928637,1772922640814,-500.0,0.00019821,2]
[407928638,1772922640824,-187.78006525,0.00019821,2]
[407928639,1772922640832,-282.71673119,0.00019821,2]
[407928640,1772922640842,-200.0,0.00019821,2]
[407928641,1772922640852,-1281.37665699,0.00019836,2]
[407928642,1772922640862,-379.1,0.00019837,2]
[407928643,1772922640874,-20893.31,0.00019837,2]
[407928644,1772922640883,-200.0,0.0001984,2]
[407928645,1772922640893,-500.0,0.00019873,2]
[407928646,1772922640902,-163.67805044,0.00019873,2]
[407928647,1772922640911,-500.0,0.00019873,2]
[407928648,1772922640920,-329.59779913,0.000199,21]
[407928649,1772922640929,-587.91798568,0.000199,2]
[407928650,1772922640938,-900.0,0.000199,7]
[407928651,1772922640948,-621.22762578,0.000199,2]
[407928652,1772922640957,-1339.7119937,0.000199,2]
[407928653,1772922640966,-3708.82164898,0.000199,2]
[407928654,1772922640976,-656.4382916,0.000199,2]
[407928655,1772922640985,-379.1,0.00019919,2]
[407928656,1772922640994,-169.3,0.00019952,2]
[407928657,1772922641003,-1279.0,0.00019952,2]
[407928658,1772922641012,-922.0,0.00019952,2]
[407928659,1772922641021,-1212.0,0.00019952,2]
[407928660,1772922641030,-2460.0,0.00019952,2]
[407928661,1772922641039,-5991.0,0.00019952,2]
[407928662,1772922641048,-155.0,0.00019987,2]
[407928663,1772922641057,-500.0,0.00019987,2]
[407928664,1772922641067,-151.0,0.00019991,2]
[407928665,1772922641076,-158.0996613,0.00019994,2]
[407928666,1772922641085,-36940.1702147,0.00019994,2]
[407928667,1772922641094,-308699.6008646,0.00019994,2]
[407928668,1772922641103,-204180.8124933,0.00019994,2]
[407928669,1772922641112,-13155.4805479,0.00019994,2]
[407928670,1772922641121,-500.0,0.00019999,2]
[407928671,1772922641130,-500.0,0.00019999,2]
[407928672,1772922641139,-500.0,0.00019999,2]
[407928673,1772922641148,-500.0,0.00019999,2]
[407928674,1772922641157,-500.0,0.00019999,2]
[407928675,1772922641166,-251.67,0.00019999,2]
[407928676,1772922641175,-500.0,0.00019999,2]
[407928677,1772922641184,-509.84,0.00019999,2]
[407928678,1772922641193,-3936.0,0.0002,2]
[407928679,1772922641203,-246688.99556383,0.0002,2]
[407928680,1772922641218,-3976.69846394,0.0002,2]
[407928681,1772922641228,-668.74373118,0.0002,2]
[407928682,1772922641239,-692.12501114,0.0002,2]
[407928683,1772922641250,-1895.51665775,0.0002,2]
[407928684,1772922641393,-421.01419753,0.00015784,2]
[407928685,1772922641402,-98.83776149,0.000181,2]
[407928686,1772922641413,-786.15248583,0.000181,2]
[407928687,1772922641448,-4639.21771041,0.000181,2]
[407928688,1772922641457,-1341.0,0.00019952,2]
[407928689,1772922641466,-1411154.19519236,0.0002,2]
[407928691,1772922642658,-300.0,0.00015785,2]
[407928692,1772922642668,-300.0,0.00016609,2]
[407928693,1772922642678,-300.0,0.0001752,2]
[407928694,1772922642687,-6506.71759858,0.0002,2]
[407928695,1772922642718,-292.85540313,0.0002,2]
[407928792,1772922645383,-300.0,0.00018527,2]
[407928793,1772922645394,-25.02065,0.000187,2]
[407928794,1772922645407,-5499.18730773,0.000187,2]
[407928795,1772922645428,-300.0,0.00019639,2]
[407928796,1772922645438,-195.28269227,0.0002,2]
[407928797,1772922645452,-752.85308577,0.0002,2]
[407928798,1772922645465,-11987.40716666,0.0002,2]
[407928799,1772922645505,-500.0,0.0002,2]
[407928800,1772922645518,-552.8612,0.0002,2]
[407928801,1772922645565,-576808.63820183,0.0002,2]
[407928802,1772922645576,-79370.994,0.0002,2]
[407928840,1772922647390,-668989.87837292,0.0002,2]
[407928841,1772922647401,-150.0,0.0002,2]
[407928842,1772922647411,-1333.33333,0.0002,2]
[407928843,1772922647422,-1003.92,0.0002,2]
[407928844,1772922647433,-3270030.29494405,0.0002,2]
[407928845,1772922647442,-728927.6836114,0.0002,2]
[407928846,1772922647452,-2000.9583,0.0002,2]
[407928847,1772922647462,-10000.0,0.0002,2]
[407928848,1772922647472,-150.0,0.0002,2]
[407928849,1772922647482,-8646.40162624,0.0002,2]
[407928850,1772922647492,-150.0,0.0002,2]
[407928851,1772922647504,-23587.74742454,0.0002,2]
[407928852,1772922647514,-150.0,0.0002,2]
[407928853,1772922647525,-2942.52233711,0.0002,2]
[407928854,1772922647545,-8543125.82761679,0.0002,2]
[407928855,1772922647555,-1439038.02567971,0.0002,2]
[407928856,1772922647566,-150.2,0.0002,2]
[407928857,1772922647576,-606.02,0.0002,7]
[407928858,1772922647586,-2000.0,0.0002,2]
[407928859,1772922647596,-2808.3788,0.0002,2]
[407928860,1772922647606,-688210.31011162,0.0002,2]
[407928861,1772922647615,-151.0,0.0002,2]
[407928862,1772922647624,-1538.627754,0.0002,2]
[407928863,1772922647634,-2000.0,0.0002,2]
[407928864,1772922647644,-2000.0,0.0002,2]
[407928865,1772922647653,-7074140.75973945,0.0002,2]
[407928866,1772922647664,-151.0,0.0002,2]
[407928867,1772922647674,-9700.0974724,0.0002,2]
[407928868,1772922647683,-379.1,0.0002,2]
[407928869,1772922647693,-200.0,0.0002,2]
[407928870,1772922647703,-151.0,0.0002,2]
[407928871,1772922647713,-200.0,0.0002,5]
[407928872,1772922647723,-2000.0,0.0002,2]
[407928873,1772922647734,-218.23034,0.0002,2]
[407928874,1772922647744,-151.0,0.0002,2]
[407928875,1772922647753,-151.0,0.0002,2]
[407928876,1772922647763,-151.0,0.0002,2]
[407928877,1772922647772,-151.0,0.0002,2]
[407928878,1772922647782,-151.0,0.0002,2]
[407928879,1772922647792,-293.76947,0.0002,2]
[407928880,1772922647801,-353.67856,0.0002,2]
[407928881,1772922647812,-353.67856,0.0002,2]
[407928882,1772922647822,-353.67856,0.0002,2]
[407928883,1772922647833,-353.67856,0.0002,2]
[407928884,1772922647843,-353.67856,0.0002,2]
[407928885,1772922647853,-353.67856,0.0002,2]
[407928886,1772922647862,-353.67856,0.0002,2]
[407928887,1772922647871,-353.67856,0.0002,2]
[407928888,1772922647881,-353.67856,0.0002,2]
[407928889,1772922647890,-353.67856,0.0002,2]
[407928890,1772922647900,-353.67856,0.0002,2]
[407928891,1772922647909,-353.67856,0.0002,2]
[407928892,1772922647918,-353.67856,0.0002,2]
[407928893,1772922647927,-353.67856,0.0002,2]
[407928894,1772922647937,-353.67856,0.0002,2]
[407928895,1772922647946,-353.67856,0.0002,2]
[407928896,1772922647955,-353.67856,0.0002,2]
[407928897,1772922647964,-353.67856,0.0002,2]
[407928898,1772922647973,-353.67856,0.0002,2]
[407928899,1772922647982,-353.678556,0.0002,2]
[407928900,1772922647992,-310.0,0.0002,2]
[407928901,1772922648002,-401.21644062,0.0002,2]
[407928902,1772922648013,-401.21644062,0.0002,2]
[407928903,1772922648024,-201.0,0.0002,2]